[Event "*** Titled Tuesday Blitz"]
[Site "Chess.com"]
[Date "2020.05.05"]
[Round "3"]
[White "tamarozi99"]
[Black "AndriiTop"]
[Result "0-1"]
[WhiteElo "2002"]
[BlackElo "2295"]
[TimeControl "180+1"]
[EndTime "10:29:33 PDT"]
[Termination "AndriiTop won by resignation"]

1. e4 {[%clk 0:03:00.9]} 1... c6 {[%clk 0:02:59.7]} 2. d4 {[%clk 0:02:59.8]}
2... d5 {[%clk 0:03:00.2]} 3. e5 {[%clk 0:02:59.6]} 3... c5 {[%clk 0:02:59.7]}
4. dxc5 {[%clk 0:02:57.6]} 4... Nc6 {[%clk 0:02:59.8]} 5. f4 {[%clk 0:02:53.4]}
5... e6 {[%clk 0:02:57.4]} 6. Nf3 {[%clk 0:02:49.4]} 6... Bxc5 {[%clk
0:02:56.4]} 7. Nc3 {[%clk 0:02:43.4]} 7... Nge7 {[%clk 0:02:54.7]} 8. Bb5 {[%clk
0:02:42.2]} 8... Qb6 {[%clk 0:02:52.5]} 9. Bxc6+ {[%clk 0:02:40.5]} 9... bxc6
{[%clk 0:02:48.6]} 10. Qe2 {[%clk 0:02:39.9]} 10... Ba6 {[%clk 0:02:47.7]} 11.
Qd2 {[%clk 0:02:25.5]} 11... Nf5 {[%clk 0:02:21.1]} 12. Na4 {[%clk 0:02:18.9]}
12... Bb4 {[%clk 0:01:54.5]} 13. Nxb6 {[%clk 0:01:56.8]} 13... Bxd2+ {[%clk
0:01:53.7]} 14. Bxd2 {[%clk 0:01:56.6]} 14... axb6 {[%clk 0:01:54.6]} 15. c3
{[%clk 0:01:51.5]} 15... c5 {[%clk 0:01:53.5]} 16. a4 {[%clk 0:01:44]} 16... h5
{[%clk 0:01:49.3]} 17. b3 {[%clk 0:01:36.5]} 17... Bd3 {[%clk 0:01:43.5]} 18.
Kf2 {[%clk 0:01:32.3]} 18... Be4 {[%clk 0:01:38.6]} 19. Ng5 {[%clk 0:01:20.2]}
19... Bc2 {[%clk 0:01:35.8]} 20. Ra3 {[%clk 0:01:13.1]} 20... Ke7 {[%clk
0:01:24.9]} 21. Rha1 {[%clk 0:01:11.3]} 21... f6 {[%clk 0:01:24.2]} 22. Nf3
{[%clk 0:01:09.4]} 22... h4 {[%clk 0:01:18.9]} 23. a5 {[%clk 0:01:01.6]} 23...
bxa5 {[%clk 0:01:04.7]} 24. Rxa5 {[%clk 0:01:01.2]} 24... Rxa5 {[%clk
0:01:05.6]} 25. Rxa5 {[%clk 0:01:00.8]} 25... Rc8 {[%clk 0:00:57.4]} 26. b4
{[%clk 0:00:51.9]} 26... cxb4 {[%clk 0:00:55.8]} 27. cxb4 {[%clk 0:00:51.8]}
27... Be4 {[%clk 0:00:56.7]} 28. Ra7+ {[%clk 0:00:36.5]} 28... Kf8 {[%clk
0:00:55.5]} 29. exf6 {[%clk 0:00:34.7]} 29... gxf6 {[%clk 0:00:56.4]} 30. Ra6
{[%clk 0:00:33.3]} 30... Kf7 {[%clk 0:00:52]} 31. Ra7+ {[%clk 0:00:32.7]} 31...
Kg6 {[%clk 0:00:51.9]} 32. Ra6 {[%clk 0:00:30.2]} 32... Rc2 {[%clk 0:00:47.9]}
33. Ke1 {[%clk 0:00:27.6]} 33... h3 {[%clk 0:00:45.1]} 34. gxh3 {[%clk
0:00:12.3]} 34... Bxf3 {[%clk 0:00:43.5]} 35. Rxe6 {[%clk 0:00:12.9]} 35... Nd4
{[%clk 0:00:40.3]} 36. Re8 {[%clk 0:00:11.8]} 36... Be4 {[%clk 0:00:35.9]} 37.
h4 {[%clk 0:00:06.9]} 37... Nf3+ {[%clk 0:00:34.3]} 38. Ke2 {[%clk 0:00:05.3]}
38... Rxd2+ {[%clk 0:00:31.9]} 39. Kf1 {[%clk 0:00:05.4]} 39... Nxh2+ {[%clk
0:00:30.7]} 40. Ke1 {[%clk 0:00:04.8]} 40... Nf3+ {[%clk 0:00:31.1]} 41. Kf1
{[%clk 0:00:05.7]} 41... Bd3+ {[%clk 0:00:30.3]} 0-1

[Event "*** Titled Tuesday Blitz"]
[Site "Chess.com"]
[Date "2020.05.05"]
[Round "3"]
[White "731291"]
[Black "WinningButNotReally"]
[Result "1-0"]
[WhiteElo "2689"]
[BlackElo "2442"]
[TimeControl "180+1"]
[EndTime "10:29:35 PDT"]
[Termination "731291 won by resignation"]

1. d4 {[%clk 0:03:00.9]} 1... Nf6 {[%clk 0:02:59.8]} 2. Nf3 {[%clk 0:03:00.5]}
2... g6 {[%clk 0:02:59.9]} 3. Nbd2 {[%clk 0:03:00.4]} 3... d5 {[%clk 0:02:59.5]}
4. b4 {[%clk 0:03:00.2]} 4... Bg7 {[%clk 0:02:58.3]} 5. e3 {[%clk 0:03:00.8]}
5... a5 {[%clk 0:02:56.7]} 6. b5 {[%clk 0:03:00.4]} 6... O-O {[%clk 0:02:56.7]}
7. Be2 {[%clk 0:03:00.5]} 7... c6 {[%clk 0:02:54.7]} 8. bxc6 {[%clk 0:02:58.5]}
8... Nxc6 {[%clk 0:02:54.3]} 9. O-O {[%clk 0:02:59]} 9... Ne4 {[%clk 0:02:51.2]}
10. Nxe4 {[%clk 0:02:58.1]} 10... dxe4 {[%clk 0:02:52.1]} 11. Nd2 {[%clk
0:02:59]} 11... e5 {[%clk 0:02:51.8]} 12. c3 {[%clk 0:02:59]} 12... f5 {[%clk
0:02:51.3]} 13. a4 {[%clk 0:02:58]} 13... Be6 {[%clk 0:02:48.3]} 14. Ba3 {[%clk
0:02:58]} 14... Rf7 {[%clk 0:02:47.3]} 15. Rb1 {[%clk 0:02:55.1]} 15... Qh4
{[%clk 0:02:27.8]} 16. Nc4 {[%clk 0:02:50.4]} 16... exd4 {[%clk 0:02:23.4]} 17.
cxd4 {[%clk 0:02:50.2]} 17... f4 {[%clk 0:02:01.2]} 18. d5 {[%clk 0:02:33.2]}
18... Rd7 {[%clk 0:01:38.7]} 19. Nb6 {[%clk 0:01:52.3]} 19... Rad8 {[%clk
0:01:33.6]} 20. Nxd7 {[%clk 0:01:50.5]} 20... Rxd7 {[%clk 0:01:33.6]} 21. Bc4
{[%clk 0:01:20.9]} 21... Kh8 {[%clk 0:01:05.8]} 22. exf4 {[%clk 0:01:15.2]}
22... Qxf4 {[%clk 0:00:58.9]} 23. Qc1 {[%clk 0:01:09]} 23... Qxc1 {[%clk
0:00:55.7]} 24. Rfxc1 {[%clk 0:01:09.9]} 24... Bxd5 {[%clk 0:00:56.1]} 25. Bxd5
{[%clk 0:01:02.2]} 25... Rxd5 {[%clk 0:00:57]} 26. Rxb7 {[%clk 0:01:02.7]} 26...
Nd8 {[%clk 0:00:56.4]} 27. Rb8 {[%clk 0:00:59.3]} 27... Bf6 {[%clk 0:00:54.6]}
28. g3 {[%clk 0:00:57.9]} 28... Kg7 {[%clk 0:00:54.5]} 29. Rc7+ {[%clk
0:00:58.2]} 29... Kh6 {[%clk 0:00:54]} 30. Bf8+ {[%clk 0:00:48.2]} 30... Kg5
{[%clk 0:00:50.2]} 31. Be7 {[%clk 0:00:46]} 31... Rd1+ {[%clk 0:00:48.1]} 32.
Kg2 {[%clk 0:00:45.6]} 32... Ne6 {[%clk 0:00:47.4]} 33. Rb5+ {[%clk 0:00:43.8]}
33... Kh6 {[%clk 0:00:43.5]} 34. Rcb7 {[%clk 0:00:29.6]} 34... Bd4 {[%clk
0:00:37.4]} 35. h4 {[%clk 0:00:23.3]} 35... Re1 {[%clk 0:00:09.5]} 36. Bg5+
{[%clk 0:00:23.4]} 36... Kh5 {[%clk 0:00:09.9]} 37. Be3+ {[%clk 0:00:19.4]}
37... Kg4 {[%clk 0:00:08.5]} 38. Bxd4 {[%clk 0:00:19.9]} 38... h6 {[%clk
0:00:06.6]} 39. Be3 {[%clk 0:00:19.4]} 39... g5 {[%clk 0:00:06.5]} 40. hxg5
{[%clk 0:00:19.3]} 40... Nxg5 {[%clk 0:00:06.6]} 41. Bxg5 {[%clk 0:00:19.2]}
41... hxg5 {[%clk 0:00:07.5]} 42. Rg7 {[%clk 0:00:19.1]} 1-0

[Event "*** Titled Tuesday Blitz"]
[Site "Chess.com"]
[Date "2020.05.05"]
[Round "3"]
[White "thedjoker98"]
[Black "tteshan"]
[Result "1-0"]
[WhiteElo "2486"]
[BlackElo "2214"]
[TimeControl "180+1"]
[EndTime "10:29:35 PDT"]
[Termination "thedjoker98 won by resignation"]

1. d4 {[%clk 0:03:00.9]} 1... Nf6 {[%clk 0:02:58.1]} 2. c4 {[%clk 0:03:00.4]}
2... e6 {[%clk 0:02:58.1]} 3. Nc3 {[%clk 0:03:00.9]} 3... Bb4 {[%clk 0:02:57.1]}
4. g3 {[%clk 0:03:01.5]} 4... Bxc3+ {[%clk 0:02:50.9]} 5. bxc3 {[%clk 0:03:01]}
5... O-O {[%clk 0:02:50.8]} 6. Bg2 {[%clk 0:03:01.5]} 6... d6 {[%clk 0:02:43.1]}
7. e4 {[%clk 0:03:01.4]} 7... e5 {[%clk 0:02:37.4]} 8. Ne2 {[%clk 0:02:59.4]}
8... b6 {[%clk 0:02:33.5]} 9. O-O {[%clk 0:02:58]} 9... Nc6 {[%clk 0:02:25.8]}
10. Ba3 {[%clk 0:02:52.3]} 10... Re8 {[%clk 0:02:16.8]} 11. f4 {[%clk
0:02:36.3]} 11... Ba6 {[%clk 0:01:58.9]} 12. Qa4 {[%clk 0:02:04]} 12... Na5
{[%clk 0:01:54.6]} 13. Rad1 {[%clk 0:01:55.5]} 13... Bxc4 {[%clk 0:01:50.1]} 14.
dxe5 {[%clk 0:01:42.5]} 14... Bxe2 {[%clk 0:01:41.1]} 15. exf6 {[%clk
0:01:42.6]} 15... Bxd1 {[%clk 0:01:21.6]} 16. Rxd1 {[%clk 0:01:29.6]} 16... Qxf6
{[%clk 0:01:15.4]} 17. e5 {[%clk 0:01:27.1]} 17... dxe5 {[%clk 0:01:12.1]} 18.
Bxa8 {[%clk 0:01:28]} 18... Rxa8 {[%clk 0:01:07.9]} 19. Qe4 {[%clk 0:01:28.1]}
19... Re8 {[%clk 0:01:00.1]} 20. fxe5 {[%clk 0:01:27.6]} 20... Qe6 {[%clk
0:00:53.3]} 21. Rd5 {[%clk 0:01:03]} 21... h6 {[%clk 0:00:48.1]} 22. Bc1 {[%clk
0:01:01.3]} 22... Nc6 {[%clk 0:00:43.9]} 23. Bf4 {[%clk 0:01:00.9]} 23... Ne7
{[%clk 0:00:37.8]} 24. Rd2 {[%clk 0:00:51.7]} 24... g5 {[%clk 0:00:29.7]} 25.
Be3 {[%clk 0:00:50.8]} 25... Ng6 {[%clk 0:00:19.8]} 26. Kf2 {[%clk 0:00:37.5]}
26... Nxe5 {[%clk 0:00:15.3]} 27. Kg2 {[%clk 0:00:36.3]} 27... Ng4 {[%clk
0:00:13.5]} 28. Qxe6 {[%clk 0:00:33.1]} 28... Rxe6 {[%clk 0:00:14.4]} 29. Rd8+
{[%clk 0:00:33.1]} 29... Kg7 {[%clk 0:00:14.1]} 30. Bd4+ {[%clk 0:00:33.2]}
30... f6 {[%clk 0:00:13.6]} 31. Rd7+ {[%clk 0:00:32.7]} 31... Kf8 {[%clk
0:00:13.2]} 32. Rxc7 {[%clk 0:00:30.8]} 32... Re2+ {[%clk 0:00:13]} 33. Kf3
{[%clk 0:00:30.8]} 33... Rxh2 {[%clk 0:00:10]} 34. Kxg4 {[%clk 0:00:30.8]} 34...
Rxa2 {[%clk 0:00:09.9]} 35. Bxf6 {[%clk 0:00:31]} 35... Rc2 {[%clk 0:00:08.3]}
36. Rxa7 {[%clk 0:00:29.9]} 36... b5 {[%clk 0:00:08.1]} 37. Bd4 {[%clk
0:00:25.5]} 37... Rd2 {[%clk 0:00:07.5]} 38. Rc7 {[%clk 0:00:24.6]} 38... b4
{[%clk 0:00:07]} 39. Bc5+ {[%clk 0:00:24.5]} 39... Ke8 {[%clk 0:00:05.8]} 40.
cxb4 {[%clk 0:00:25.4]} 40... Rd3 {[%clk 0:00:05.8]} 41. Rh7 {[%clk 0:00:24.5]}
41... Rc3 {[%clk 0:00:05.8]} 42. Rxh6 {[%clk 0:00:24.6]} 42... Rc4+ {[%clk
0:00:06.2]} 43. Kxg5 {[%clk 0:00:25]} 43... Rf4 {[%clk 0:00:06.4]} 44. gxf4
{[%clk 0:00:24.4]} 1-0

[Event "*** Titled Tuesday Blitz"]
[Site "Chess.com"]
[Date "2020.05.05"]
[Round "3"]
[White "KaterinaMiroshnik"]
[Black "Zavgorodniy_Serg"]
[Result "1-0"]
[WhiteElo "2437"]
[BlackElo "2662"]
[TimeControl "180+1"]
[EndTime "10:29:38 PDT"]
[Termination "KaterinaMiroshnik won by resignation"]

1. d3 {[%clk 0:03:00.7]} 1... Nf6 {[%clk 0:02:56]} 2. Nd2 {[%clk 0:03:01.6]}
2... d6 {[%clk 0:02:50.4]} 3. Ngf3 {[%clk 0:03:02.5]} 3... g6 {[%clk 0:02:50.6]}
4. e4 {[%clk 0:03:03.4]} 4... Bg7 {[%clk 0:02:50.7]} 5. Be2 {[%clk 0:03:04.3]}
5... O-O {[%clk 0:02:50.8]} 6. O-O {[%clk 0:03:05.2]} 6... c5 {[%clk 0:02:51]}
7. c3 {[%clk 0:03:06.1]} 7... Nc6 {[%clk 0:02:51.1]} 8. d4 {[%clk 0:03:05.7]}
8... cxd4 {[%clk 0:02:50.5]} 9. cxd4 {[%clk 0:03:06.6]} 9... e5 {[%clk
0:02:50.2]} 10. d5 {[%clk 0:03:06.4]} 10... Ne7 {[%clk 0:02:49.4]} 11. Ne1
{[%clk 0:03:03.8]} 11... Ne8 {[%clk 0:02:46.5]} 12. a4 {[%clk 0:02:59.4]} 12...
f5 {[%clk 0:02:46.4]} 13. f3 {[%clk 0:02:57.5]} 13... Nf6 {[%clk 0:02:45.9]} 14.
a5 {[%clk 0:02:55.1]} 14... a6 {[%clk 0:02:45]} 15. Nd3 {[%clk 0:02:51.8]} 15...
g5 {[%clk 0:02:41.5]} 16. Ra4 {[%clk 0:02:43]} 16... Ng6 {[%clk 0:02:38.5]} 17.
Nb3 {[%clk 0:02:24.7]} 17... f4 {[%clk 0:02:34.9]} 18. Nd2 {[%clk 0:02:21.5]}
18... h5 {[%clk 0:02:26.4]} 19. Nc4 {[%clk 0:02:21.3]} 19... g4 {[%clk
0:02:15.1]} 20. Rb4 {[%clk 0:02:12.3]} 20... Nh4 {[%clk 0:02:09.5]} 21. Rb6
{[%clk 0:02:05.2]} 21... Ne8 {[%clk 0:02:09.1]} 22. fxg4 {[%clk 0:01:59.9]}
22... Qg5 {[%clk 0:02:03.4]} 23. g3 {[%clk 0:01:51.9]} 23... hxg4 {[%clk
0:01:51.7]} 24. gxh4 {[%clk 0:01:49.1]} 24... Qxh4 {[%clk 0:01:52.6]} 25. Nxf4
{[%clk 0:01:31.6]} 25... exf4 {[%clk 0:01:49.9]} 26. Bxf4 {[%clk 0:01:32.5]}
26... Rxf4 {[%clk 0:01:28.9]} 27. Rxf4 {[%clk 0:01:29.1]} 27... Bh6 {[%clk
0:01:29.1]} 28. Rf2 {[%clk 0:01:16.7]} 28... Nf6 {[%clk 0:01:19.2]} 29. e5
{[%clk 0:00:50.9]} 29... Ne4 {[%clk 0:01:15.1]} 30. Rg2 {[%clk 0:00:51.2]} 30...
g3 {[%clk 0:00:43]} 31. hxg3 {[%clk 0:00:43.9]} 31... Qh3 {[%clk 0:00:39.8]} 32.
Bf1 {[%clk 0:00:39.2]} 32... Bg4 {[%clk 0:00:36.2]} 33. Be2 {[%clk 0:00:32.4]}
33... Bxe2 {[%clk 0:00:27.8]} 34. Qxe2 {[%clk 0:00:31.6]} 34... Rf8 {[%clk
0:00:28.1]} 35. Rxd6 {[%clk 0:00:21.7]} 35... Ng5 {[%clk 0:00:22.9]} 36. Rg6+
{[%clk 0:00:19.5]} 36... Kh8 {[%clk 0:00:22.1]} 37. Rxg5 {[%clk 0:00:18.4]}
37... Bxg5 {[%clk 0:00:22.7]} 38. Rh2 {[%clk 0:00:17.2]} 1-0

[Event "*** Titled Tuesday Blitz"]
[Site "Chess.com"]
[Date "2020.05.05"]
[Round "3"]
[White "THE_PLAYER6"]
[Black "Aygehovit1992"]
[Result "0-1"]
[WhiteElo "2418"]
[BlackElo "2674"]
[TimeControl "180+1"]
[EndTime "10:29:38 PDT"]
[Termination "Aygehovit1992 won by checkmate"]

1. d4 {[%clk 0:03:00.9]} 1... d6 {[%clk 0:02:51.3]} 2. g3 {[%clk 0:02:52.1]}
2... Nf6 {[%clk 0:02:50.7]} 3. Bg2 {[%clk 0:02:48.7]} 3... g6 {[%clk 0:02:50.8]}
4. e4 {[%clk 0:02:49]} 4... Bg7 {[%clk 0:02:51.3]} 5. Ne2 {[%clk 0:02:48.4]}
5... O-O {[%clk 0:02:51.8]} 6. O-O {[%clk 0:02:48.9]} 6... e5 {[%clk 0:02:50.6]}
7. h3 {[%clk 0:02:48.7]} 7... Nc6 {[%clk 0:02:49.9]} 8. Be3 {[%clk 0:02:47.1]}
8... exd4 {[%clk 0:02:47.3]} 9. Nxd4 {[%clk 0:02:40.8]} 9... Re8 {[%clk
0:02:47.5]} 10. Nc3 {[%clk 0:02:39.5]} 10... Bd7 {[%clk 0:02:47.7]} 11. Re1
{[%clk 0:02:32.6]} 11... a6 {[%clk 0:02:42.5]} 12. a4 {[%clk 0:02:30.3]} 12...
Nxd4 {[%clk 0:02:41.5]} 13. Bxd4 {[%clk 0:02:28.5]} 13... c5 {[%clk 0:02:42.2]}
14. Be3 {[%clk 0:02:18.5]} 14... Bc6 {[%clk 0:02:41.6]} 15. Bf4 {[%clk
0:02:16.6]} 15... Re6 {[%clk 0:02:41.2]} 16. Nd5 {[%clk 0:02:04]} 16... Bxd5
{[%clk 0:02:38.6]} 17. exd5 {[%clk 0:02:03.7]} 17... Rxe1+ {[%clk 0:02:38.9]}
18. Qxe1 {[%clk 0:02:03]} 18... Qd7 {[%clk 0:02:39.3]} 19. Qd2 {[%clk
0:02:00.2]} 19... Re8 {[%clk 0:02:34.7]} 20. a5 {[%clk 0:01:56.6]} 20... Nh5
{[%clk 0:02:30.6]} 21. Be3 {[%clk 0:01:53.7]} 21... Bxb2 {[%clk 0:02:29.5]} 22.
Rb1 {[%clk 0:01:54.2]} 22... Be5 {[%clk 0:02:24.9]} 23. g4 {[%clk 0:01:49.2]}
23... Ng7 {[%clk 0:02:11.2]} 24. Bf1 {[%clk 0:01:31]} 24... h5 {[%clk
0:02:09.8]} 25. Be2 {[%clk 0:01:23.8]} 25... hxg4 {[%clk 0:02:08.9]} 26. hxg4
{[%clk 0:01:24.7]} 26... f5 {[%clk 0:02:07.5]} 27. f4 {[%clk 0:01:19.5]} 27...
Bd4 {[%clk 0:02:01.2]} 28. Bxd4 {[%clk 0:01:19.2]} 28... cxd4 {[%clk 0:02:02.1]}
29. g5 {[%clk 0:01:17.4]} 29... Re4 {[%clk 0:01:55.7]} 30. Bf3 {[%clk
0:01:14.9]} 30... Re3 {[%clk 0:01:54.9]} 31. Kf2 {[%clk 0:01:12.8]} 31... Qa4
{[%clk 0:01:26]} 32. Rxb7 {[%clk 0:01:06.4]} 32... Qa3 {[%clk 0:01:25.7]} 33.
Rxg7+ {[%clk 0:00:56.1]} 33... Kf8 {[%clk 0:01:24.6]} 34. Bg2 {[%clk 0:00:23.5]}
34... Qc5 {[%clk 0:01:12.1]} 35. Rxg6 {[%clk 0:00:21.8]} 35... d3 {[%clk
0:01:08.2]} 36. Rf6+ {[%clk 0:00:20.3]} 36... Kg7 {[%clk 0:01:07.8]} 37. Kf1
{[%clk 0:00:06.2]} 37... dxc2 {[%clk 0:01:04.7]} 38. Qc1 {[%clk 0:00:04.6]}
38... Qc4+ {[%clk 0:00:58]} 39. Kg1 {[%clk 0:00:04]} 39... Qd4 {[%clk
0:00:57.9]} 40. Kh2 {[%clk 0:00:03.7]} 40... Qxf4+ {[%clk 0:00:57.6]} 41. Kg1
{[%clk 0:00:02]} 41... Qd4 {[%clk 0:00:51]} 42. Qxc2 {[%clk 0:00:01.7]} 42...
Re1+ {[%clk 0:00:48.3]} 43. Kh2 {[%clk 0:00:01.7]} 43... Qh4+ {[%clk 0:00:35.5]}
44. Bh3 {[%clk 0:00:02]} 44... Qf4+ {[%clk 0:00:36.1]} 45. Kg2 {[%clk
0:00:01.9]} 45... Qf1+ {[%clk 0:00:36.6]} 46. Kh2 {[%clk 0:00:01.7]} 46... Qg1#
{[%clk 0:00:36.7]} 0-1

[Event "*** Titled Tuesday Blitz"]
[Site "Chess.com"]
[Date "2020.05.05"]
[Round "3"]
[White "Angel_Hranitel_37"]
[Black "gurelediz"]
[Result "1-0"]
[WhiteElo "2385"]
[BlackElo "2569"]
[TimeControl "180+1"]
[EndTime "10:29:38 PDT"]
[Termination "Angel_Hranitel_37 won on time"]

1. d4 {[%clk 0:03:00.9]} 1... Nf6 {[%clk 0:02:59]} 2. Nf3 {[%clk 0:02:57.5]}
2... e6 {[%clk 0:02:58.1]} 3. g3 {[%clk 0:02:57.9]} 3... c5 {[%clk 0:02:49]} 4.
c3 {[%clk 0:02:57]} 4... cxd4 {[%clk 0:02:47.3]} 5. Nxd4 {[%clk 0:02:56.7]} 5...
Nc6 {[%clk 0:02:48.2]} 6. Bg2 {[%clk 0:02:57]} 6... Nxd4 {[%clk 0:02:46.6]} 7.
cxd4 {[%clk 0:02:57.9]} 7... d5 {[%clk 0:02:47.1]} 8. O-O {[%clk 0:02:58.4]}
8... Bd6 {[%clk 0:02:47.6]} 9. Nc3 {[%clk 0:02:58.6]} 9... O-O {[%clk 0:02:47]}
10. Bf4 {[%clk 0:02:57.5]} 10... Bxf4 {[%clk 0:02:46.4]} 11. gxf4 {[%clk
0:02:58.4]} 11... a6 {[%clk 0:02:45]} 12. a4 {[%clk 0:02:51.1]} 12... b6 {[%clk
0:02:43.9]} 13. e3 {[%clk 0:02:51.3]} 13... Bb7 {[%clk 0:02:43]} 14. Kh1 {[%clk
0:02:51.2]} 14... Rc8 {[%clk 0:02:41.9]} 15. Rg1 {[%clk 0:02:51.6]} 15... Qd6
{[%clk 0:02:39.7]} 16. Bf1 {[%clk 0:02:45.4]} 16... Rc7 {[%clk 0:02:32.5]} 17.
Bd3 {[%clk 0:02:43.4]} 17... Rfc8 {[%clk 0:02:29.8]} 18. Qe2 {[%clk 0:02:43.7]}
18... h6 {[%clk 0:02:23.2]} 19. Bxa6 {[%clk 0:02:35.8]} 19... Bxa6 {[%clk
0:02:17.6]} 20. Qxa6 {[%clk 0:02:36.7]} 20... Qb4 {[%clk 0:02:08.3]} 21. Rab1
{[%clk 0:00:59.1]} 21... Ne4 {[%clk 0:01:53.9]} 22. Nxe4 {[%clk 0:00:59.2]}
22... dxe4 {[%clk 0:01:54.8]} 23. Qf1 {[%clk 0:00:46.2]} 23... g6 {[%clk
0:01:33.3]} 24. Qh3 {[%clk 0:00:43.7]} 24... Kg7 {[%clk 0:01:28.8]} 25. f5
{[%clk 0:00:42.8]} 25... exf5 {[%clk 0:01:23.6]} 26. Qxf5 {[%clk 0:00:43.7]}
26... Qe7 {[%clk 0:01:19.4]} 27. b4 {[%clk 0:00:35.9]} 27... Rc2 {[%clk
0:01:05.9]} 28. a5 {[%clk 0:00:32.8]} 28... Qh4 {[%clk 0:00:48.3]} 29. Qe5+
{[%clk 0:00:13.5]} 29... Kh7 {[%clk 0:00:42.9]} 30. axb6 {[%clk 0:00:10.2]}
30... Rxf2 {[%clk 0:00:16.9]} 31. Rbf1 {[%clk 0:00:08.6]} 31... Rcc2 {[%clk
0:00:09.9]} 32. Rxf2 {[%clk 0:00:08.8]} 32... Rxf2 {[%clk 0:00:08.8]} 33. b7
{[%clk 0:00:07.3]} 33... Qh3 {[%clk 0:00:08.5]} 34. Qg3 {[%clk 0:00:06]} 34...
Qxg3 {[%clk 0:00:01.2]} 35. hxg3 {[%clk 0:00:06.9]} 1-0

[Event "*** Titled Tuesday Blitz"]
[Site "Chess.com"]
[Date "2020.05.05"]
[Round "3"]
[White "mirciulica14"]
[Black "TerorPtica"]
[Result "0-1"]
[WhiteElo "2622"]
[BlackElo "2874"]
[TimeControl "180+1"]
[EndTime "10:29:39 PDT"]
[Termination "TerorPtica won by resignation"]

1. d4 {[%clk 0:03:00.9]} 1... Nf6 {[%clk 0:02:59.2]} 2. c4 {[%clk 0:03:00.9]}
2... e6 {[%clk 0:02:58.6]} 3. Nf3 {[%clk 0:03:01.5]} 3... d5 {[%clk 0:02:57.8]}
4. Nc3 {[%clk 0:03:01.8]} 4... Bb4 {[%clk 0:02:57.5]} 5. cxd5 {[%clk 0:03:01.6]}
5... exd5 {[%clk 0:02:57.2]} 6. Bg5 {[%clk 0:03:02.2]} 6... h6 {[%clk
0:02:56.4]} 7. Bh4 {[%clk 0:03:02.4]} 7... O-O {[%clk 0:02:55.4]} 8. e3 {[%clk
0:03:02.3]} 8... Bf5 {[%clk 0:02:55.9]} 9. Qb3 {[%clk 0:03:02.2]} 9... Bxc3+
{[%clk 0:02:51.9]} 10. Qxc3 {[%clk 0:03:03.1]} 10... Nbd7 {[%clk 0:02:47.9]} 11.
Nd2 {[%clk 0:03:03.2]} 11... c6 {[%clk 0:02:23.5]} 12. Be2 {[%clk 0:02:53.8]}
12... Ne4 {[%clk 0:02:15.9]} 13. Nxe4 {[%clk 0:02:28.4]} 13... Qxh4 {[%clk
0:02:13]} 14. Nd6 {[%clk 0:02:28.9]} 14... Be4 {[%clk 0:02:05.3]} 15. Nxe4
{[%clk 0:02:06.1]} 15... Qxe4 {[%clk 0:02:01.3]} 16. O-O {[%clk 0:02:02.4]}
16... Nf6 {[%clk 0:02:01.3]} 17. f3 {[%clk 0:01:52.4]} 17... Qe7 {[%clk
0:01:58.5]} 18. Rae1 {[%clk 0:01:52.5]} 18... Rac8 {[%clk 0:01:45.6]} 19. Bd3
{[%clk 0:01:40.1]} 19... c5 {[%clk 0:01:42.9]} 20. dxc5 {[%clk 0:01:39.3]} 20...
Rxc5 {[%clk 0:01:40.7]} 21. Qd4 {[%clk 0:01:27.2]} 21... b6 {[%clk 0:01:41.1]}
22. g4 {[%clk 0:01:20.4]} 22... Rfc8 {[%clk 0:01:39.7]} 23. Qf4 {[%clk
0:00:44.5]} 23... Nd7 {[%clk 0:01:28.2]} 24. Bf5 {[%clk 0:00:42.9]} 24... Rc4
{[%clk 0:01:24.2]} 25. Qg3 {[%clk 0:00:30.9]} 25... R8c5 {[%clk 0:01:13.2]} 26.
h4 {[%clk 0:00:27.1]} 26... Nf8 {[%clk 0:00:58.2]} 27. g5 {[%clk 0:00:22.2]}
27... hxg5 {[%clk 0:00:57]} 28. hxg5 {[%clk 0:00:23.1]} 28... g6 {[%clk
0:00:54.4]} 29. Bd3 {[%clk 0:00:21.6]} 29... Rc1 {[%clk 0:00:53.5]} 30. Rxc1
{[%clk 0:00:19.1]} 30... Rxc1 {[%clk 0:00:53.1]} 31. Qf4 {[%clk 0:00:16.3]}
31... Rxf1+ {[%clk 0:00:44.1]} 32. Kxf1 {[%clk 0:00:17.2]} 32... Ne6 {[%clk
0:00:41.7]} 33. Qb8+ {[%clk 0:00:17.6]} 33... Kh7 {[%clk 0:00:40.7]} 34. f4
{[%clk 0:00:17.8]} 34... Nc5 {[%clk 0:00:40.5]} 35. Be2 {[%clk 0:00:11.4]} 35...
Qxe3 {[%clk 0:00:38.9]} 36. Qc7 {[%clk 0:00:11]} 36... Kg7 {[%clk 0:00:34.8]}
37. Qd6 {[%clk 0:00:08.9]} 37... Ne6 {[%clk 0:00:24.3]} 38. Bg4 {[%clk
0:00:03.2]} 38... Qxf4+ {[%clk 0:00:21]} 39. Qxf4 {[%clk 0:00:03.9]} 39... Nxf4
{[%clk 0:00:21.1]} 40. Bf3 {[%clk 0:00:04.1]} 40... d4 {[%clk 0:00:20]} 41. Ke1
{[%clk 0:00:04.4]} 41... Ne6 {[%clk 0:00:20.5]} 0-1